fUSD/lending_fUSD_20250611
["ID","MTS","AMOUNT","RATE_DAILY","PERIOD"]
[365406803,1749657083766,-490.0,0.00019835,2]
[365406804,1749657083776,-754.64,0.00019835,2]
[365406805,1749657083785,-490.0,0.00019835,2]
[365406806,1749657083794,-470.0,0.00019835,2]
[365406807,1749657083803,-1329.41,0.00019835,2]
[365406808,1749657083813,-490.0,0.00019835,2]
[365406809,1749657083822,-490.0,0.00019835,2]
[365406810,1749657083831,-490.0,0.00019835,2]
[365406811,1749657083841,-640.94,0.00019835,2]
[365406812,1749657083850,-1208.79,0.00019835,2]
[365406813,1749657083860,-490.0,0.00019835,2]
[365406814,1749657083869,-490.0,0.00019835,2]
[365406815,1749657083878,-490.0,0.00019835,2]
[365406816,1749657083888,-490.0,0.00019835,2]
[365406817,1749657083897,-490.0,0.00019835,2]
[365406818,1749657083906,-490.0,0.00019835,2]
[365406819,1749657083916,-490.0,0.00019835,2]
[365406820,1749657083925,-490.0,0.00019835,2]
[365406821,1749657083934,-935.4,0.00019835,2]
[365406822,1749657083943,-490.0,0.00019835,2]
[365406823,1749657083953,-433.88955181,0.00019835,2]
[365406824,1749657083962,-490.0,0.00019835,2]
[365406825,1749657083974,-490.0,0.00019835,2]
[365406826,1749657083983,-533.66,0.00019835,2]
[365406827,1749657083993,-490.0,0.00019835,2]
[365406828,1749657084002,-490.0,0.00019835,2]
[365406829,1749657084011,-309.37782891,0.00019835,2]
[365406830,1749657084022,-787.19,0.00019835,2]
[365406831,1749657084032,-490.0,0.00019835,2]
[365406832,1749657084041,-1414.1,0.00019835,2]
[365406833,1749657084052,-4335.99,0.00019835,2]
[365406834,1749657084061,-490.0,0.00019835,2]
[365406835,1749657084070,-490.0,0.00019835,2]
[365406836,1749657084079,-490.0,0.00019835,2]
[365406837,1749657084088,-490.0,0.00019835,2]
[365406838,1749657084097,-951.58,0.00019835,2]
[365406839,1749657084106,-490.0,0.00019835,2]
[365406840,1749657084116,-490.0,0.00019835,2]
[365406841,1749657084125,-490.0,0.00019835,2]
[365406842,1749657084134,-490.0,0.00019835,2]
[365406843,1749657084143,-236.65245097,0.00019835,2]
[365406844,1749657084153,-490.0,0.00019835,2]
[365406845,1749657084162,-490.0,0.00019835,2]
[365406846,1749657084171,-490.0,0.00019835,2]
[365406847,1749657084180,-1438.08,0.00019835,2]
[365406848,1749657084190,-490.0,0.00019835,2]
[365406849,1749657084199,-490.0,0.00019835,2]
[365406850,1749657084208,-490.0,0.00019835,2]
[365406851,1749657084217,-1080.12,0.00019835,2]
[365406852,1749657084226,-490.0,0.00019835,2]
[365406853,1749657084235,-981.05,0.00019835,2]
[365406854,1749657084244,-462.28045912,0.00019835,2]
[365406855,1749657084254,-490.0,0.00019835,2]
[365406856,1749657084263,-490.0,0.00019835,2]
[365406857,1749657084274,-490.0,0.00019835,2]
[365406858,1749657084284,-490.0,0.00019835,2]
[365406859,1749657084293,-490.0,0.00019835,2]
[365406860,1749657084303,-528.94,0.00019835,2]
[365406861,1749657084314,-7322.99,0.00019835,2]
[365406862,1749657084323,-490.0,0.00019835,2]
[365406863,1749657084333,-490.0,0.00019835,2]
[365406864,1749657084342,-490.0,0.00019835,2]
[365406865,1749657084351,-490.0,0.00019835,2]
[365406866,1749657084361,-593.03,0.00019835,2]
[365406867,1749657084371,-490.0,0.00019835,2]
[365406868,1749657084380,-578.87,0.00019835,2]
[365406869,1749657084389,-490.0,0.00019835,2]
[365406870,1749657084399,-490.0,0.00019835,2]
[365406871,1749657084408,-490.0,0.00019835,2]
[365406872,1749657084418,-490.0,0.00019835,2]
[365406873,1749657084428,-490.0,0.00019835,2]
[365406874,1749657084438,-827.81,0.00019835,2]
[365406875,1749657084447,-490.0,0.00019835,2]
[365406876,1749657084456,-490.0,0.00019835,2]
[365406877,1749657084466,-490.0,0.00019835,2]
[365406878,1749657084475,-964.18,0.00019835,2]
[365406879,1749657084484,-490.0,0.00019835,2]
[365406880,1749657084493,-979.32,0.00019835,2]
[365406881,1749657084502,-490.0,0.00019835,2]
[365406882,1749657084512,-1437.0,0.00019835,2]
[365406883,1749657084522,-490.0,0.00019835,2]
[365406884,1749657084533,-490.0,0.00019835,2]
[365406885,1749657084543,-490.0,0.00019835,2]
[365406886,1749657084552,-490.0,0.00019835,2]
[365406887,1749657084562,-490.0,0.00019835,2]
[365406888,1749657084572,-490.0,0.00019835,2]
[365406889,1749657084581,-490.0,0.00019835,2]
[365406890,1749657084590,-782.0,0.00019835,2]
[365406891,1749657084600,-490.0,0.00019835,2]
[365406892,1749657084609,-522.61,0.00019835,2]
[365406893,1749657084619,-490.0,0.00019835,2]
[365406894,1749657084629,-490.0,0.00019835,2]
[365406895,1749657084638,-490.0,0.00019835,2]
[365406896,1749657084649,-699.16,0.00019835,2]
[365406897,1749657084659,-490.0,0.00019835,2]
[365406898,1749657084669,-490.0,0.00019835,2]
[365406899,1749657084679,-6743.11,0.00019835,2]
[365406900,1749657084688,-722.57,0.00019835,2]
[365406901,1749657084697,-547.39119836,0.00019835,2]
[365406902,1749657084706,-548.96,0.00019835,2]
[365406903,1749657084716,-490.0,0.00019835,2]
[365406904,1749657084725,-581.58,0.00019835,2]
[365406905,1749657084735,-490.0,0.00019835,2]
[365406906,1749657084744,-1559.11,0.00019835,2]
[365406907,1749657084754,-490.0,0.00019835,2]
[365406908,1749657084763,-490.0,0.00019835,2]
[365406909,1749657084774,-490.0,0.00019835,2]
[365406910,1749657084784,-1530.85,0.00019835,2]
[365406911,1749657084794,-1595.73,0.00019835,2]
[365406912,1749657084803,-490.0,0.00019835,2]
[365406913,1749657084812,-490.0,0.00019835,2]
[365406914,1749657084822,-490.0,0.00019835,2]
[365406915,1749657084831,-222.45,0.00019835,2]
[365406916,1749657084840,-490.0,0.00019835,2]
[365406917,1749657084850,-490.0,0.00019835,2]
[365406918,1749657084859,-1017.36,0.00019835,2]
[365406919,1749657084868,-1194.42,0.00019835,2]
[365406920,1749657084878,-608.96881954,0.00019835,2]
[365406921,1749657084888,-490.0,0.00019835,2]
[365406922,1749657084897,-490.0,0.00019835,2]
[365406923,1749657084906,-490.0,0.00019835,2]
[365406924,1749657084915,-798.11,0.00019835,2]
[365406925,1749657084925,-490.0,0.00019835,2]
[365406926,1749657084935,-490.0,0.00019835,2]
[365406927,1749657084944,-490.0,0.00019835,2]
[365406928,1749657084954,-490.0,0.00019835,2]
[365406929,1749657084963,-649.36,0.00019835,2]
[365406930,1749657084978,-490.0,0.00019835,2]
[365406931,1749657084987,-490.0,0.00019835,2]
[365406932,1749657084997,-490.0,0.00019835,2]
[365406933,1749657085006,-1825.77,0.00019835,2]
[365406934,1749657085017,-683.07,0.00019835,2]
[365406935,1749657085028,-490.0,0.00019835,2]
[365406936,1749657085038,-490.0,0.00019835,2]
[365406937,1749657085050,-793.83,0.00019835,2]
[365406938,1749657085061,-860.72,0.00019835,2]
[365406939,1749657085070,-302.35146621,0.00019835,2]
[365406940,1749657085080,-490.0,0.00019835,2]
[365406941,1749657085089,-723.35,0.00019835,2]
[365406942,1749657085099,-394.54436337,0.00019835,2]
[365406943,1749657085108,-490.0,0.00019835,2]
[365406944,1749657085117,-490.0,0.00019835,2]
[365406945,1749657085127,-490.0,0.00019835,2]
[365406946,1749657085138,-653.8,0.00019835,2]
[365406947,1749657085147,-929.69,0.00019835,2]
[365406948,1749657085156,-490.0,0.00019835,2]
[365406949,1749657085165,-490.0,0.00019835,2]
[365406950,1749657085174,-547.12505645,0.00019835,2]
[365406951,1749657085184,-490.0,0.00019835,2]
[365406952,1749657085193,-817.63,0.00019835,2]
[365406953,1749657085202,-490.0,0.00019835,2]
[365406954,1749657085211,-490.0,0.00019835,2]
[365406955,1749657085221,-490.0,0.00019835,2]
[365406956,1749657085230,-490.0,0.00019835,2]
[365406957,1749657085240,-480.0,0.00019835,2]
[365406958,1749657085250,-490.0,0.00019835,2]
[365406959,1749657085260,-527.56,0.00019835,2]
[365406960,1749657085269,-973.7,0.00019835,2]
[365406961,1749657085281,-960.18,0.00019835,2]
[365406962,1749657085291,-490.0,0.00019835,2]
[365406963,1749657085300,-490.0,0.00019835,2]
[365406964,1749657085309,-490.0,0.00019835,2]
[365406965,1749657085318,-793.73,0.00019835,2]
[365406966,1749657085328,-449.51492312,0.00019835,2]
[365406967,1749657085338,-490.0,0.00019835,2]
[365406968,1749657085347,-2883.29,0.00019835,2]
[365406969,1749657085357,-640.0,0.00019835,2]
[365406970,1749657085367,-490.0,0.00019835,2]
[365406971,1749657085376,-535.54624807,0.00019835,2]
[365406972,1749657085385,-1200.85,0.00019835,2]
[365406973,1749657085394,-668.4,0.00019835,2]
[365406974,1749657085404,-490.0,0.00019835,2]
[365406975,1749657085413,-417.36890142,0.00019835,2]
[365406976,1749657085423,-420.0,0.00019835,2]
[365406977,1749657085433,-490.0,0.00019835,2]
[365406978,1749657085442,-929.22,0.00019835,2]
[365406979,1749657085452,-572.39,0.00019835,2]
[365406980,1749657085462,-490.0,0.00019835,2]
[365406981,1749657085472,-459.77,0.00019835,2]
[365406982,1749657085482,-490.0,0.00019835,2]
[365406983,1749657085492,-608.72,0.00019835,2]
[365406984,1749657085501,-490.0,0.00019835,2]
[365406985,1749657085510,-1959.46,0.00019835,2]
[365406986,1749657085520,-2611.03,0.00019835,2]
[365406987,1749657085536,-2155.38647802,0.00019839,2]
[365406988,1749657085545,-500.0,0.0001984,2]
[365406989,1749657085555,-200.0,0.0001984,2]
[365406990,1749657085565,-150.0,0.00019856,2]
[365406991,1749657085574,-1000.0,0.00019863,2]
[365406992,1749657085584,-216.9196195,0.00019866,2]
[365406993,1749657085593,-150.0,0.00019889,2]
[365406994,1749657085602,-6436.94,0.00019899,2]
[365406995,1749657085611,-500.0,0.00019899,2]
[365406996,1749657085621,-1500.0,0.000199,2]
[365406997,1749657085631,-1096.782,0.000199,2]
[365406998,1749657085640,-175.386,0.000199,2]
[365406999,1749657085651,-408.64946819,0.000199,2]
[365407000,1749657085660,-3551.94120579,0.000199,2]
[365407001,1749657085670,-1000.0,0.00019903,2]
[365407002,1749657085680,-231.47102185,0.00019921,2]
[365407003,1749657085689,-502.33085806,0.00019921,2]
[365407004,1749657085699,-1000.0,0.00019921,2]
[365407005,1749657085708,-1000.0,0.00019921,2]
[365407006,1749657085717,-1003.82930385,0.00019921,2]
[365407007,1749657085727,-1000.0,0.00019921,2]
[365407008,1749657085737,-500.82345942,0.00019921,2]
[365407009,1749657085746,-1000.0,0.00019921,2]
[365407010,1749657085755,-847.07180303,0.00019921,2]
[365407011,1749657085765,-771.73537512,0.00019921,2]
[365407012,1749657085778,-1000.0,0.00019921,2]
[365407013,1749657085788,-507.20162525,0.00019963,2]
[365407014,1749657085798,-507.20162525,0.00019969,2]
[365407015,1749657085807,-500.0,0.0001997,2]
[365407016,1749657085817,-150.0,0.0001997,2]
[365407017,1749657085827,-150.0,0.0001997,2]
[365407018,1749657085836,-150.0,0.0001997,2]
[365407019,1749657085846,-150.0,0.0001997,2]
[365407020,1749657086014,-150.0,0.0001997,2]
[365407021,1749657086025,-150.0,0.0001997,2]
[365407022,1749657086035,-150.0,0.0001997,2]
[365407023,1749657086044,-188.0,0.0001997,2]
[365407024,1749657086054,-150.0,0.0001997,2]
[365407025,1749657086064,-500.70107759,0.00019973,2]
[365407026,1749657086074,-500.0,0.00019973,2]
[365407027,1749657086084,-500.0,0.00019973,2]
[365407028,1749657086094,-500.0,0.00019973,2]
[365407029,1749657086103,-500.0,0.00019973,2]
[365407030,1749657086112,-159.94692853,0.00019973,2]
[365407031,1749657086121,-159.94663997,0.00019973,2]
[365407032,1749657086131,-500.96347863,0.00019973,2]
[365407033,1749657086140,-500.0,0.00019973,2]
[365407034,1749657086150,-500.0,0.00019973,2]
[365407035,1749657086160,-159.94517653,0.00019973,2]
[365407036,1749657086170,-159.94501383,0.00019973,2]
[365407037,1749657086179,-159.94458347,0.00019973,2]
[365407038,1749657086189,-150.0,0.00019978,2]
[365407039,1749657086198,-500.0,0.00019989,2]
[365407040,1749657086208,-440.4437978,0.00019989,2]
[365407041,1749657086217,-500.0,0.00019989,2]
[365407042,1749657086227,-975.4181703,0.00019996,2]
[365407043,1749657086236,-654.2443975,0.00019996,2]
[365407044,1749657086245,-500.0,0.00019997,2]
[365407045,1749657086255,-500.0,0.00019997,2]
[365407046,1749657086264,-2018.12,0.00019997,2]
[365407047,1749657086274,-550.0,0.00019997,2]
[365407048,1749657086286,-150.0,0.00019997,2]
[365407049,1749657086296,-150.0,0.00019997,2]
[365407050,1749657086306,-250.0,0.00019997,2]
[365407051,1749657086316,-150.0,0.00019997,2]
[365407052,1749657086326,-150.0,0.00019997,2]
[365407053,1749657086336,-298.0051257,0.00019997,2]
[365407054,1749657086347,-150.0,0.00019997,2]
[365407055,1749657086357,-85860.30078695,0.00019998,2]
[365407056,1749657086366,-6436.94,0.00019998,2]
[365407057,1749657086375,-500.0,0.00019998,2]
[365407058,1749657086385,-666.0,0.00019999,2]
[365407059,1749657086395,-669.08307195,0.00019999,2]
[365407060,1749657086405,-300.0,0.00019999,2]
[365407061,1749657086414,-666.0,0.00019999,2]
[365407062,1749657086424,-300.0,0.00019999,2]
[365407063,1749657086434,-300.0,0.00019999,2]
[365407064,1749657086444,-2002.63748951,0.00019999,2]
[365407065,1749657086453,-1000.0,0.00019999,2]
[365407066,1749657086462,-1000.0,0.00019999,2]
[365407067,1749657086472,-1000.0,0.00019999,2]
[365407068,1749657086482,-1000.0,0.00019999,2]
[365407069,1749657086491,-1000.0,0.00019999,2]
[365407070,1749657086501,-1000.0,0.00019999,2]
[365407071,1749657086511,-155.0,0.00019999,2]
[365407072,1749657086521,-1000.0,0.00019999,2]
[365407073,1749657086536,-1000.0,0.00019999,2]
[365407074,1749657086546,-7239.41784005,0.00019999,2]
[365407075,1749657086556,-1001.5382,0.00019999,2]
[365407076,1749657086567,-500.0,0.00019999,2]
[365407077,1749657086577,-5157.066131,0.00019999,3]
[365407078,1749657086586,-150.0,0.00019999,2]
[365407079,1749657086596,-500.0,0.00019999,2]
[365407080,1749657086606,-500.0,0.00019999,2]
[365407081,1749657086615,-500.0,0.00019999,2]
[365407082,1749657086626,-602.59,0.00019999,2]
[365407083,1749657086636,-500.0,0.00019999,2]
[365407084,1749657086646,-500.0,0.00019999,2]
[365407085,1749657086656,-500.0,0.00019999,2]
[365407086,1749657086666,-500.0,0.00019999,2]
[365407087,1749657086676,-500.0,0.00019999,2]
[365407088,1749657086685,-500.0,0.00019999,2]
[365407089,1749657086695,-500.0,0.00019999,2]
[365407090,1749657086704,-500.0,0.00019999,2]
[365407091,1749657086714,-582.97,0.00019999,2]
[365407092,1749657086723,-3447.26956071,0.00019999,2]
[365407093,1749657086733,-515.22003817,0.00019999,2]
[365407094,1749657086743,-500.0,0.00019999,2]
[365407095,1749657086753,-541.62674553,0.00019999,2]
[365407096,1749657086763,-2018.12,0.00019999,2]
[365407097,1749657086772,-2018.12,0.00019999,2]
[365407098,1749657086786,-2018.12,0.00019999,2]
[365407099,1749657086795,-2018.12,0.00019999,2]
[365407100,1749657086805,-2018.12,0.00019999,2]
[365407101,1749657086814,-2018.12,0.00019999,2]
[365407102,1749657086824,-2018.12,0.00019999,2]
[365407103,1749657086833,-2018.12,0.00019999,2]
[365407104,1749657086842,-2018.12,0.00019999,2]
[365407105,1749657086852,-2018.12,0.00019999,2]
[365407106,1749657086861,-2018.12,0.00019999,2]
[365407107,1749657086871,-2018.12,0.00019999,2]
[365407108,1749657086880,-2018.12,0.00019999,2]
[365407109,1749657086891,-2018.12,0.00019999,2]
[365407110,1749657086900,-2018.12,0.00019999,2]
[365407111,1749657086910,-2018.12,0.00019999,2]
[365407112,1749657086920,-2018.12,0.00019999,2]
[365407113,1749657086929,-2018.12,0.00019999,2]
[365407114,1749657086939,-2018.12,0.00019999,2]
[365407115,1749657086949,-2018.23252127,0.00019999,2]
[365407116,1749657086961,-6436.94,0.00019999,2]
[365407117,1749657086971,-6436.94,0.00019999,2]
[365407118,1749657086984,-6436.94,0.00019999,2]
[365407119,1749657086993,-6436.94,0.00019999,2]
[365407120,1749657087004,-6436.94,0.00019999,2]
[365407121,1749657087013,-6436.94,0.00019999,2]
[365407122,1749657087025,-6436.94,0.00019999,2]
[365407123,1749657087035,-6436.94,0.00019999,2]
[365407124,1749657087044,-6436.94,0.00019999,2]
[365407125,1749657087055,-6436.94,0.00019999,2]
[365407126,1749657087065,-6436.94,0.00019999,2]
[365407127,1749657087074,-6436.94,0.00019999,2]
[365407128,1749657087083,-6436.94,0.00019999,2]
[365407129,1749657087093,-6436.94,0.00019999,2]
[365407130,1749657087106,-6437.17998347,0.00019999,2]
[365407131,1749657087119,-500.0,0.00019999,2]
[365407132,1749657087129,-500.0,0.00019999,2]
[365407133,1749657087139,-438.36171479,0.00019999,2]
[365407134,1749657087148,-769458.51298362,0.0002,3]
[365407135,1749657087158,-22485.70429105,0.0002,3]
[365407136,1749657087167,-833.29909032,0.0002,3]
[365407137,1749657087177,-2775389.34359105,0.0002,2]
[365407138,1749657087186,-19269.08380873,0.0002,2]
[365407139,1749657087195,-214.0,0.0002,2]
[365407140,1749657087205,-2000.0,0.0002,2]
[365407141,1749657087214,-2000.0,0.0002,2]
[365407142,1749657087223,-151.0,0.0002,2]
[365407143,1749657087233,-151.0,0.0002,2]
[365407144,1749657087243,-151.0,0.0002,2]
[365407145,1749657087253,-151.0,0.0002,2]
[365407146,1749657087262,-151.0,0.0002,2]
[365407147,1749657087271,-151.0,0.0002,2]
[365407148,1749657087282,-212.0,0.0002,2]
[365407149,1749657087292,-212.0,0.0002,2]
[365407150,1749657087301,-151.0,0.0002,2]
[365407151,1749657087311,-151.0,0.0002,2]
[365407152,1749657087320,-151.0,0.0002,2]
[365407153,1749657087330,-193.571168,0.0002,2]
[365407154,1749657087339,-193.571168,0.0002,2]
[365407155,1749657087349,-193.571168,0.0002,2]
[365407156,1749657087361,-491861.73,0.0002,2]
[365407157,1749657087371,-151.212301,0.0002,2]
[365407158,1749657087381,-2000.0,0.0002,2]
[365407159,1749657087391,-209.4,0.0002,2]
[365407160,1749657087400,-209.4,0.0002,2]
[365407161,1749657087410,-488.87149207,0.0002,3]
[365407162,1749657087419,-151.0,0.0002,2]
[365407163,1749657087429,-16982.54772177,0.0002,2]
[365407164,1749657087439,-151.0,0.0002,2]
[365407165,1749657087448,-153.363149,0.0002,2]
[365407166,1749657087458,-151.0,0.0002,2]
[365407167,1749657087467,-286.3477586,0.0002,4]
[365407168,1749657087477,-151.0,0.0002,2]
[365407169,1749657087486,-151.0,0.0002,2]
[365407170,1749657087495,-273.28645525,0.0002,2]
[365407171,1749657087505,-11887.89907049,0.0002,3]
[365407172,1749657087514,-151.0,0.0002,2]
[365407173,1749657087524,-173.429496,0.0002,2]
[365407174,1749657087535,-151.0,0.0002,2]
[365407175,1749657087545,-211.0,0.0002,2]
[365407176,1749657087554,-212.0,0.0002,2]
[365407177,1749657087564,-2943.41,0.0002,2]
[365407178,1749657087573,-22882.72289375,0.0002,2]
[365407179,1749657087583,-203.399788,0.0002,2]
[365407180,1749657087592,-156253.31785807,0.0002,2]
[365407181,1749657087602,-210.79,0.0002,7]
[365407182,1749657087611,-151.0,0.0002,2]
[365407183,1749657087621,-279.257773,0.0002,2]
[365407184,1749657087630,-544.1826,0.0002,2]
[365407185,1749657087640,-19587.86,0.0002,2]
[365407186,1749657087650,-201.4,0.0002,2]
[365407187,1749657087659,-227495.85207463,0.0002,2]
[365407188,1749657088934,-490.0,0.00019178,2]
[365407189,1749657088944,-490.0,0.00019178,2]
[365407190,1749657088953,-490.0,0.00019178,2]
[365407191,1749657088963,-363.61552424,0.00019342,2]
[365407192,1749657088977,-126.38447576,0.00019342,2]
[365407193,1749657088987,-474.62613347,0.00019342,2]
[365407194,1749657088998,-15.37386653,0.00019342,2]
[365407195,1749657089007,-490.0,0.00019342,2]
[365407196,1749657089018,-490.0,0.00019506,2]
[365407197,1749657089027,-490.0,0.00019506,2]
[365407198,1749657089036,-490.0,0.00019506,2]
[365407199,1749657089046,-490.0,0.00019506,2]
[365407200,1749657089057,-490.0,0.00019506,2]
[365407201,1749657089067,-490.0,0.00019671,2]
[365407202,1749657089077,-490.0,0.00019671,2]
[365407203,1749657089086,-490.0,0.00019671,2]
[365407204,1749657089096,-490.0,0.00019671,2]
[365407205,1749657089106,-211.21,0.00019671,2]
[365407206,1749657089116,-490.0,0.00019835,2]
[365407207,1749657089125,-490.0,0.00019835,2]
[365407208,1749657089135,-490.0,0.00019835,2]
[365407209,1749657089146,-109093.58899696,0.0002,2]
[365407210,1749657089158,-142843.1236183,0.0002,2]
[365407211,1749657089170,-82646.74259136,0.0002,2]
[365407212,1749657089193,-490.0,0.00019342,2]
[365407213,1749657089213,-691372.59775436,0.0002,2]
[365407214,1749657089287,-482.72,0.00019835,2]
[365407215,1749657089306,-1013.60896763,0.0002,2]
[365407216,1749657089828,-479.97644543,0.00019178,2]
[365407217,1749657089844,-490.0,0.00019178,2]
[365407218,1749657089859,-490.0,0.00019178,2]
[365407219,1749657089875,-303.3923078,0.00019178,2]
[365407220,1749657089895,-186.6076922,0.00019178,2]
[365407221,1749657089910,-490.0,0.00019342,2]
[365407222,1749657089925,-490.0,0.00019342,2]
[365407223,1749657089940,-385.88,0.00019506,2]
[365407224,1749657089954,-12638.00484975,0.0002,2]
[365407225,1749657090037,-254.15460774,0.00019178,2]
[365407226,1749657090057,-235.84539226,0.00019178,2]
[365407227,1749657090072,-176.51072791,0.00019342,2]
[365407228,1749657090087,-2796522.38201103,0.0002,2]
[365407229,1749657090619,-500.0,0.00018998,2]
[365407230,1749657090629,-351.3210421,0.00018998,2]
[365407231,1749657090639,-313.04743064,0.00018998,2]
[365407232,1749657090649,-1968.78,0.00019178,2]
[365407233,1749657090659,-490.0,0.00019178,2]
[365407234,1749657090669,-490.0,0.00019178,2]
[365407235,1749657090678,-500.0,0.00019178,2]
[365407236,1749657091127,-500.0,0.00019178,2]
[365407237,1749657091153,-500.0,0.00019178,2]
[365407238,1749657091170,-500.0,0.00019178,2]
[365407239,1749657091193,-500.0,0.00019178,2]
[365407240,1749657091210,-500.0,0.00019178,2]
[365407241,1749657091220,-500.0,0.00019178,2]
[365407242,1749657091229,-500.0,0.00019178,2]
[365407243,1749657091238,-500.0,0.00019178,2]
[365407244,1749657091248,-500.0,0.00019178,2]
[365407245,1749657091257,-500.0,0.00019178,2]
[365407246,1749657091267,-500.0,0.00019178,2]
[365407247,1749657091276,-500.0,0.00019178,2]
[365407248,1749657091286,-363.24032724,0.00019178,2]
[365407249,1749657091305,-136.75967276,0.00019178,2]
[365407250,1749657091315,-500.0,0.00019178,2]
[365407251,1749657091324,-500.0,0.00019178,2]
[365407252,1749657091333,-531.55419454,0.00019178,2]
[365407253,1749657091343,-500.0,0.00019178,2]
[365407254,1749657091351,-500.0,0.00019178,2]
[365407255,1749657091360,-500.0,0.00019178,2]
[365407256,1749657091370,-490.0,0.00019342,2]
[365407257,1749657091380,-1968.78,0.00019342,2]
[365407258,1749657091389,-490.0,0.00019342,2]
[365407259,1749657091399,-490.0,0.00019342,2]
[365407260,1749657091408,-1968.78,0.00019506,2]
[365407261,1749657091416,-434.48,0.00019506,2]
[365407262,1749657091425,-490.0,0.00019506,2]
[365407263,1749657091435,-1968.78,0.00019671,2]
[365407264,1749657091445,-490.0,0.00019671,2]
[365407265,1749657091455,-1968.78,0.00019835,2]
[365407266,1749657091464,-44937.88055826,0.0002,2]
[365407267,1749657091476,-933.26280001,0.0002,2]
[365407268,1749657097533,200.0,0.00019,120]
[365407270,1749657184608,200.0,0.000202,15]
[365407273,1749657581510,325.85,0.00013699,2]
[365407274,1749657731970,200.0,0.00016436,2]
[365407275,1749657750553,13850.0,0.000202,15]
[365407278,1749657850022,60000.0,0.00020201,29]
[365407279,1749657931992,150.0,0.00021447,120]
[365407281,1749657990927,150.0,0.00020755,120]
[365407282,1749658001946,1224.01,0.00016,2]
[365407283,1749658009708,3302.5852402,0.00017,2]
[365407284,1749658037160,-200.0,0.00017756,3]
[365407285,1749658037181,-250.0,0.00017864,2]
[365407286,1749658037202,-150.0,0.00017938,7]
[365407287,1749658037224,-346.56,0.00017971,2]
[365407288,1749658037244,-111.60553792,0.00017999,2]
[365407289,1749658044431,2.06613002,0.000202,15]
[365407290,1749658045125,-88.39446208,0.00017999,2]
[365407291,1749658045147,-1080.57,0.00018046,2]
[365407292,1749658045168,-102.1486697,0.00018264,2]
[365407294,1749658052120,-1121.8613303,0.00018264,2]
[365407295,1749658052142,-666.0,0.00018365,2]
[365407296,1749658052163,-250.0,0.00018391,2]
[365407297,1749658052186,-305.24,0.00018436,2]
[365407298,1749658052210,-304.11,0.00018436,2]
[365407299,1749658052233,-304.58,0.00018436,2]
[365407300,1749658052256,-302.82,0.00018438,2]
[365407301,1749658052280,-304.73,0.00018448,2]
[365407302,1749658052303,-1200.0,0.00018499,2]
[365407303,1749658052326,-300.0,0.00018499,2]
[365407304,1749658052349,-304.34,0.000185,2]
[365407305,1749658052376,-150.99,0.000185,2]
[365407306,1749658052399,-3064.37193717,0.000185,2]
[365407307,1749658070541,3735.34700135,0.00017,2]
[365407320,1749658208061,400.0,0.00024649,120]
[365407321,1749658230563,150.0,0.00020898,120]